Workbook

Sheet Input Data
D7: ENERGY EFFICIENCY IN
D8: GROUNDWATER SYSTEMS
B13: DISCLAIMER: This tool provides information to asses the initial potential Energy, CO2 and financial savings replacing old cold groundwater pumps by a new energy efficient ones at a municipal cold water utility company level (not designed for the individual residential cold water consumers). If the results provided by this tool are under the interest of municipality and it wants to upgrade existing pumps, as a next step we recommned to reach the cold water pumps manufacturing companies, which will provide detailed model and price for every individual pump. The function of the tool is merely informative and the C2E2 does not have any legal responsibility, interest or involvement in any of the technical nor financial recommendations that may be provided to the user. For more information access our institutional webpage at https://unepccc.org/.
B20: How to use this Tool:
B21: Please fill data in yellow cels. Mandatory to fill data cells on a top have "Mandatory to fill ↓". Other data in yellow cells are not mandatory to fill.
B23: Mandatory to fill data:
C24: Mandatory to fill ↓ | E24: Press "Clear input data" button | G24: Press "Calculate" button
B27: Not mandatory to fill data:
B32: INPUT DATA
B38: Country | C38: Mozambique
B42: No. | C42: How much water is extracted from underground | D42: Water supply per day | E42: Electricity price | F42: Old pump age | G42: Old pump age power capacity | H42: Old pump IE class (1-4) | I42: Initial investment for new pump, Eur
C43: m3/month | D43: h/day | E43: Eur/MWh | F43: Year | G43: kW | I43: Eur
C44: Mandatory to fill ↓ | D44: Mandatory to fill ↓ | E44: Mandatory to fill ↓ | F44: Year | G44: kW
B45: 1 | C45: 1000 | D45: 8 | E45: 150 | F45: 2 | G45: 1 | H45: 1 | I45: 367.76875
B46: 2 | C46: 2000 | D46: 8 | E46: 150 | F46: 15 | G46: 20 | H46: 2 | I46: 735.5375
B47: 3 | C47: 10000 | D47: 8 | E47: 150 | F47: 10 | G47: 89.83333333 | H47: 3 | I47: 3677.6875
B48: 4 | C48: 50000 | D48: 8 | E48: 150 | F48: 10 | G48: 179.6666667 | H48: 4 | I48: 18388.4375
B49: 5 | C49: 100000 | D49: 8 | E49: 150 | F49: 15 | G49: 179.6666667 | H49: 1
B50: 6 | C50: 110000 | D50: 8 | E50: 150 | F50: 15 | G50: 179.6666667 | H50: 2
B51: 7 | C51: 120000 | D51: 8 | E51: 150 | F51: 20 | G51: 179.6666667 | H51: 3
B52: 8 | C52: 130000 | D52: 8 | E52: 150 | F52: 20 | G52: 179.6666667 | H52: 4
B53: 9 | C53: 140000 | D53: 8 | E53: 150 | F53: 25 | G53: 179.6666667 | I53: 36776.875
B54: 10 | C54: 250000 | D54: 8 | E54: 150 | F54: 30 | G54: 179.6666667 | H54: 4
C55: =+SUM(C45:C54) -> 913000 | D55: =IF(SUM(D45:D54)=0,"",+AVERAGE(D45:D54)) -> 8 | E55: =IF(SUM(E45:E54)=0,"",+AVERAGE(E45:E54)) -> 150
B58: *CO2 emission factors are based on IEA data.
B59: *This tool is developed with kind support of a Grunfoss pumps manufacturing company.
B1000: INPUT DATA
B1006: Country | C1006: Mozambique
B1010: No. | C1010: How much water is extracted from underground | D1010: Water supply per day | E1010: Electricity price | F1010: Old pump age | G1010: Old pump age power capacity | H1010: Old pump IE class (1-4) | I1010: Initial investment for new pump, Eur
C1011: m3/month | D1011: h/day | E1011: Eur/MWh | F1011: Year | G1011: kW | I1011: Eur
C1012: Mandatory to fill ↓ | D1012: Mandatory to fill ↓ | E1012: Mandatory to fill ↓ | F1012: Year | G1012: kW
B1013: 1 | C1013: 1000 | D1013: 8 | E1013: 150 | F1013: 2 | G1013: 1 | H1013: 1 | I1013: 367.76875
B1014: 2 | C1014: 2000 | D1014: 8 | E1014: 150 | F1014: 15 | G1014: 20 | H1014: 2 | I1014: 735.5375
B1015: 3 | C1015: 10000 | D1015: 8 | E1015: 150 | F1015: 10 | G1015: 89.83333333 | H1015: 3 | I1015: 3677.6875
B1016: 4 | C1016: 50000 | D1016: 8 | E1016: 150 | F1016: 10 | G1016: 179.6666667 | H1016: 4 | I1016: 18388.4375
B1017: 5 | C1017: 100000 | D1017: 8 | E1017: 150 | F1017: 15 | G1017: 179.6666667 | H1017: 1
B1018: 6 | C1018: 110000 | D1018: 8 | E1018: 150 | F1018: 15 | G1018: 179.6666667 | H1018: 2
B1019: 7 | C1019: 120000 | D1019: 8 | E1019: 150 | F1019: 20 | G1019: 179.6666667 | H1019: 3
B1020: 8 | C1020: 130000 | D1020: 8 | E1020: 150 | F1020: 20 | G1020: 179.6666667 | H1020: 4
B1021: 9 | C1021: 140000 | D1021: 8 | E1021: 150 | F1021: 25 | G1021: 179.6666667 | I1021: 36776.875
B1022: 10 | C1022: 250000 | D1022: 8 | E1022: 150 | F1022: 30 | G1022: 179.6666667 | H1022: 4
C1023: =+SUM(C1013:C1022) -> 913000 | D1023: =+AVERAGE(D1013:D1022) -> 8 | E1023: =+AVERAGE(E1013:E1022) -> 150
B1034: OUTPUT DATA
I1037: Electricity savings
F1038: Electricity savings | G1038: Electricity savings | H1038: Electricity savings | I1038: 1.5 | J1038: Electricity savings
B1039: No. | C1039: Water flow rate | D1039: Specific energy consumption | E1039: Pump power capacity, calculated | F1039: Efficiency savings due to oversizing | G1039: Efficiency savings due to IE | H1039: Efficiency savings due to oversizing + IE | I1039: Efficiency savings due to age | J1039: Selected efficiency savings | K1039: Energy consumption for water extraction of old pump | L1039: Energy consumption for water extraction of new pump | M1039: Energy savings | N1039: Financial savings | O1039: Initial investment for equipment | P1039: Simple payback period | Q1039: CO2 emissions factor | R1039: CO2 baseline scenarios | S1039: CO2 scenarios after upgrade | T1039: CO2 savings | U1039: CO2 savings
C1040: m3/h | D1040: kWh/m3 | E1040: kW | F1040: % | G1040: % | H1040: % | I1040: % | J1040: % | K1040: MWh/year | L1040: MWh/year | M1040: MWh/year | N1040: Eur/year | O1040: Eur | P1040: Years | Q1040: t/MWh | R1040: tCO2/year | S1040: tCO2/year | T1040: tCO2/year | U1040: %
B1042: 1 | C1042: =+IF(OR(C1013="",D1013=""),"",C1013/30/D1013) -> 4.166666667 | D1042: =IF(C1042="","",0.2873*C1042^(-0.053)) -> 0.2663709268 | E1042: =IF(C1042="","", 0.2156*C1042) -> 0.8983333333 | F1042: =IF(C1042="","", +IF(G1013/E1042<=1,0,IF(G1013/E1042<1.5,0.15,0.25))) -> 0.15 | G1042: =IF(C1042="","",+IF(OR(H1013="",H1013=1),12.282*E1042^(-0.281)/100,IF(H1013=2,8.8703*E1042^(-0.285)/100,IF(H1013=3,4.7564*E1042^(-0.285)/100,IF(H1013=4,0,"?"))))) -> 0.12657652 | H1042: =+IF(C1042="","",F1042+G1042) -> 0.27657652 | I1042: =+IF(C1042="","",IF(F1013="",(20*$I$1038/100),IF(F1013<20,(F1013*$I$1038/100),(20*$I$1038/100)))) -> 0.03 | J1042: =IF(C1042="","",+MAX(H1042,I1042)) -> 0.27657652 | K1042: =IF(C1042="","",+L1042*(1+J1042)) -> 4.080514449 | L1042: =IF(C1042="","",+C1013*D1042/1000*12) -> 3.196451122 | M1042: =IF(C1042="","",+(K1042-L1042)) -> 0.8840633277 | N1042: =IF(OR(C1042="",E1013=""),"",+M1042*E1013) -> 132.6094991 | O1042: =IF(OR(C1042="",E1013=""),"",IF(I1013="",58.843*C1042,I1013)) -> 367.76875 | P1042: =IF(OR(C1042="",E1013=""),"",+O1042/N1042) -> 2.773321311 | Q1042: =IF(C1042="","",IFERROR(VLOOKUP($C$1006,'CO2 emissions factor'!$D$7:$E$164,2,FALSE),'CO2 emissions factor'!$E$165)) -> 0.9958 | R1042: =IF(C1042="","",+Q1042*K1042) -> 4.063376289 | S1042: =IF(C1042="","",+Q1042*L1042) -> 3.183026027 | T1042: =IF(C1042="","",+R1042-S1042) -> 0.8803502617 | U1042: =IF(C1042="","",+S1042/R1042) -> 0.78334513
B1043: 2 | C1043: 8.333333333 | D1043: =IF(C1043="","",0.2873*C1043^(-0.053)) -> 0.2567628763 | E1043: =IF(C1043="","", 0.2156*C1043) -> 1.796666667 | F1043: =IF(C1043="","", +IF(G1014/E1043<=1,0,IF(G1014/E1043<1.5,0.15,0.25))) -> 0.25 | G1043: =IF(C1043="","",+IF(OR(H1014="",H1014=1),12.282*E1043^(-0.281)/100,IF(H1014=2,8.8703*E1043^(-0.285)/100,IF(H1014=3,4.7564*E1043^(-0.285)/100,IF(H1014=4,0,"?"))))) -> 0.07506112474 | H1043: =+IF(C1043="","",F1043+G1043) -> 0.3250611247 | I1043: =+IF(C1043="","",IF(F1014="",(20*$I$1038/100),IF(F1014<20,(F1014*$I$1038/100),(20*$I$1038/100)))) -> 0.225 | J1043: =IF(C1043="","",+MAX(H1043,I1043)) -> 0.3250611247 | K1043: =IF(C1043="","",+L1043*(1+J1043)) -> 8.165436135 | L1043: =IF(C1043="","",+C1014*D1043/1000*12) -> 6.162309031 | M1043: =IF(C1043="","",+(K1043-L1043)) -> 2.003127104 | N1043: =IF(OR(C1043="",E1014=""),"",+M1043*E1014) -> 300.4690657 | O1043: =IF(OR(C1043="",E1014=""),"",IF(I1014="",58.843*C1043,I1014)) -> 735.5375 | P1043: =IF(OR(C1043="",E1014=""),"",+O1043/N1043) -> 2.447964147 | Q1043: =IF(C1043="","",IFERROR(VLOOKUP($C$1006,'CO2 emissions factor'!$D$7:$E$164,2,FALSE),'CO2 emissions factor'!$E$165)) -> 0.9958 | R1043: =IF(C1043="","",+Q1043*K1043) -> 8.131141303 | S1043: =IF(C1043="","",+Q1043*L1043) -> 6.136427333 | T1043: =IF(C1043="","",+R1043-S1043) -> 1.994713971 | U1043: =IF(C1043="","",+S1043/R1043) -> 0.7546821662
B1044: 3 | C1044: 41.66666667 | D1044: =IF(C1044="","",0.2873*C1044^(-0.053)) -> 0.2357690653 | E1044: 8.983333333 | F1044: 0.25 | G1044: 0.02544184947 | H1044: 0.2754418495 | I1044: 0.15 | J1044: 0.2754418495 | K1044: 36.08516793 | L1044: 28.29228784 | M1044: 7.792880088 | N1044: 1168.932013 | O1044: 3677.6875 | P1044: 3.146194525 | Q1044: =IF(C1044="","",IFERROR(VLOOKUP($C$1006,'CO2 emissions factor'!$D$7:$E$164,2,FALSE),'CO2 emissions factor'!$E$165)) -> 0.9958 | R1044: 35.93361022 | S1044: 28.17346023 | T1044: 7.760149992 | U1044: 0.7840420168
B1045: 4 | C1045: 208.3333333 | D1045: 0.2164917802 | E1045: 44.91666667 | F1045: 0.25 | G1045: 0 | H1045: 0.25 | I1045: 0.15 | J1045: 0.25 | K1045: 162.3688351 | L1045: 129.8950681 | M1045: 32.47376703 | N1045: 4871.065054 | O1045: 18388.4375 | P1045: 3.775034268 | Q1045: =IF(C1045="","",IFERROR(VLOOKUP($C$1006,'CO2 emissions factor'!$D$7:$E$164,2,FALSE),'CO2 emissions factor'!$E$165)) -> 0.9958 | R1045: 161.686886 | S1045: 129.3495088 | T1045: 32.3373772 | U1045: 0.8
B1046: 5 | C1046: 416.6666667 | D1046: 0.20868288 | E1046: 89.83333333 | F1046: 0.25 | G1046: 0.0347018918 | H1046: 0.2847018918 | I1046: 0.225 | J1046: 0.2847018918 | K1046: 321.7143489 | L1046: 250.419456 | M1046: 71.29489288 | N1046: 10694.23393 | O1046: 24517.91667 | P1046: 2.292629544 | Q1046: =IF(C1046="","",IFERROR(VLOOKUP($C$1006,'CO2 emissions factor'!$D$7:$E$164,2,FALSE),'CO2 emissions factor'!$E$165)) -> 0.9958 | R1046: 320.3631487 | S1046: 249.3676943 | T1046: 70.99545433 | U1046: 0.7783906962
B1047: 6 | C1047: 458.3333333 | D1047: 0.2076313891 | E1047: 98.81666667 | F1047: 0.25 | G1047: 0.02395585641 | H1047: 0.2739558564 | I1047: 0.225 | J1047: 0.2739558564 | K1047: 349.1574558 | L1047: 274.0734336 | M1047: 75.08402222 | N1047: 11262.60333 | O1047: 26969.70833 | P1047: 2.394624718 | Q1047: =IF(C1047="","",IFERROR(VLOOKUP($C$1006,'CO2 emissions factor'!$D$7:$E$164,2,FALSE),'CO2 emissions factor'!$E$165)) -> 0.9958 | R1047: 347.6909945 | S1047: 272.9223252 | T1047: 74.76866933 | U1047: 0.7849565548
B1048: 7 | C1048: 500 | D1048: 0.20667608 | E1048: 107.8 | F1048: 0.25 | G1048: 0.01253089306 | H1048: 0.2625308931 | I1048: 0.3 | J1048: 0.3 | K1048: 386.8976218 | L1048: 297.6135552 | M1048: 89.28406656 | N1048: 13392.60998 | O1048: 29421.5 | P1048: 2.196845875 | Q1048: =IF(C1048="","",IFERROR(VLOOKUP($C$1006,'CO2 emissions factor'!$D$7:$E$164,2,FALSE),'CO2 emissions factor'!$E$165)) -> 0.9958 | R1048: 385.2726518 | S1048: 296.3635783 | T1048: 88.90907348 | U1048: 0.7692307692
B1049: 8 | C1049: 541.6666667 | D1049: 0.2058011627 | E1049: 116.7833333 | F1049: 0.25 | G1049: 0 | H1049: 0.25 | I1049: 0.3 | J1049: 0.3 | K1049: 417.364758 | L1049: 321.0498139 | M1049: 96.31494416 | N1049: 14447.24162 | O1049: 31873.29167 | P1049: 2.20618527 | Q1049: =IF(C1049="","",IFERROR(VLOOKUP($C$1006,'CO2 emissions factor'!$D$7:$E$164,2,FALSE),'CO2 emissions factor'!$E$165)) -> 0.9958 | R1049: 415.6118261 | S1049: 319.7014047 | T1049: 95.9104214 | U1049: 0.7692307692
B1050: 9 | C1050: 583.3333333 | D1050: 0.2049944183 | E1050: 125.7666667 | F1050: 0.15 | G1050: 0.0315712061 | H1050: 0.1815712061 | I1050: 0.3 | J1050: 0.3 | K1050: 447.7078095 | L1050: 344.3906227 | M1050: 103.3171868 | N1050: 15497.57802 | O1050: 36776.875 | P1050: 2.373072422 | Q1050: =IF(C1050="","",IFERROR(VLOOKUP($C$1006,'CO2 emissions factor'!$D$7:$E$164,2,FALSE),'CO2 emissions factor'!$E$165)) -> 0.9958 | R1050: 445.8274367 | S1050: 342.9441821 | T1050: 102.8832546 | U1050: 0.7692307692
B1051: 10 | C1051: 1041.666667 | D1051: 0.1987906718 | E1051: 224.5833333 | F1051: 0 | G1051: 0 | H1051: 0 | I1051: 0.3 | J1051: 0.3 | K1051: 775.2836199 | L1051: 596.3720153 | M1051: 178.9116046 | N1051: 26836.74069 | O1051: 61294.79167 | P1051: 2.283987924 | Q1051: =IF(C1051="","",IFERROR(VLOOKUP($C$1006,'CO2 emissions factor'!$D$7:$E$164,2,FALSE),'CO2 emissions factor'!$E$165)) -> 0.9958 | R1051: 772.0274287 | S1051: 593.8672529 | T1051: 178.1601759 | U1051: 0.7692307692
C1052: =+SUM(C1042:C1051) -> 3804.166667 | E1052: =IF(SUM(E1042:E1051)=0,"",+SUM(E1042:E1051)) -> 820.1783333 | K1052: =IF(SUM(K1042:K1051)=0,"",+SUM(K1042:K1051)) -> 2908.825568 | L1052: =IF(SUM(L1042:L1051)=0,"",+SUM(L1042:L1051)) -> 2251.465013 | M1052: =IF(SUM(M1042:M1051)=0,"",+SUM(M1042:M1051)) -> 657.3605548 | N1052: =IF(SUM(N1042:N1051)=0,"",+SUM(N1042:N1051)) -> 98604.08322 | O1052: =IF(SUM(O1042:O1051)=0,"",+SUM(O1042:O1051)) -> 234023.5146 | P1052: =IF(SUM(P1042:P1051)=0,"",+O1052/N1052) -> 2.373365351 | Q1052: =IF(SUM(Q1042:Q1051)=0,"",+AVERAGE(Q1042:Q1051)) -> 0.9958 | R1052: =IF(SUM(R1042:R1051)=0,"",+SUM(R1042:R1051)) -> 2896.6085 | S1052: =IF(SUM(S1042:S1051)=0,"",+SUM(S1042:S1051)) -> 2242.00886 | T1052: =IF(SUM(T1042:T1051)=0,"",+SUM(T1042:T1051)) -> 654.5996405 | U1052: =IF(SUM(U1042:U1051)=0,"",+S1052/R1052) -> 0.7740116966
A2000: .

Sheet Report
D5: ENERGY EFFICIENCY IN
D6: GROUNDWATER SYSTEMS
D7: REPORT
B11: DISCLAIMER: This tool provides information to asses the initial potential Energy, CO2 and financial savings replacing old cold groundwater pumps by a new energy efficient ones at a municipal cold water utility company level (not designed for the individual residential cold water consumers). If the results provided by this tool are under the interest of municipality and it wants to upgrade existing pumps, as a next step we recommned to reach the cold water pumps manufacturing companies, which will provide detailed model and price for every individual pump. The function of the tool is merely informative and the C2E2 does not have any legal responsibility, interest or involvement in any of the technical nor financial recommendations that may be provided to the user. For more information access our institutional webpage at https://unepccc.org/.
C21: No. | D21: Name | E21: Units | F21: Value
C24: 1 | D24: Country | F24: Mozambique
C26: 2 | D26: Water consumption | E26: m3/month | F26: 913000
C27: 3 | D27: Electricity price | E27: Eur/MWh | F27: 150
C28: 4 | D28: Power capacity | E28: kW | F28: 820.1783333
C30: 5 | D30: Energy consumption for water extraction of old pump | E30: MWh/year | F30: 2908.825568
C31: 6 | D31: Energy consumption for water extraction of new pump | E31: MWh/year | F31: 2251.465013
C32: 7 | D32: Energy savings | E32: MWh/year | F32: 657.3605548
C34: 8 | D34: Investment | E34: Eur | F34: 234023.5146
C35: 9 | D35: Financial savings | E35: Eur/year | F35: 98604.08322
C36: 10 | D36: Simple payback period | E36: Years | F36: 2.373365351
C38: 11 | D38: CO2 emissions factor | E38: t/MWh | F38: 0.9958
C39: 12 | D39: CO2 baseline scenarios | E39: tCO2/year | F39: 2896.6085
C40: 13 | D40: CO2 scenarios after upgrade | E40: tCO2/year | F40: 2242.00886
C41: 14 | D41: CO2 savings | E41: tCO2/year | F41: 654.5996405
C42: 15 | D42: CO2 savings | E42: % | F42: 0.7740116966
C44: *CO2 emission factors are based on IEA data.
C50: *This tool is developed with kind support of a Grunfoss pumps manufacturing company.
C1001: No. | D1001: Name | E1001: Units | F1001: Value
C1004: 1 | D1004: Country | F1004: =+'Input Data'!C1006 -> Mozambique
C1006: 2 | D1006: Water consumption | E1006: m3/month | F1006: =+'Input Data'!C1023 -> 913000
C1007: 3 | D1007: Electricity price | E1007: Eur/MWh | F1007: =+'Input Data'!E1023 -> 150
C1008: 4 | D1008: Power capacity | E1008: kW | F1008: =+'Input Data'!E1052 -> 820.1783333
C1010: 5 | D1010: Energy consumption for water extraction of old pump | E1010: MWh/year | F1010: =+'Input Data'!K1052 -> 2908.825568
C1011: 6 | D1011: Energy consumption for water extraction of new pump | E1011: MWh/year | F1011: =+'Input Data'!L1052 -> 2251.465013
C1012: 7 | D1012: Energy savings | E1012: MWh/year | F1012: =+'Input Data'!M1052 -> 657.3605548
C1014: 8 | D1014: Investment | E1014: Eur | F1014: =+'Input Data'!O1052 -> 234023.5146
C1015: 9 | D1015: Financial savings | E1015: Eur/year | F1015: =+'Input Data'!N1052 -> 98604.08322
C1016: 10 | D1016: Simple payback period | E1016: Years | F1016: =+'Input Data'!P1052 -> 2.373365351
C1018: 11 | D1018: CO2 emissions factor | E1018: t/MWh | F1018: =+'Input Data'!Q1052 -> 0.9958
C1019: 12 | D1019: CO2 baseline scenarios | E1019: tCO2/year | F1019: =+'Input Data'!R1052 -> 2896.6085
C1020: 13 | D1020: CO2 scenarios after upgrade | E1020: tCO2/year | F1020: =+'Input Data'!S1052 -> 2242.00886
C1021: 14 | D1021: CO2 savings | E1021: tCO2/year | F1021: =+'Input Data'!T1052 -> 654.5996405
C1022: 15 | D1022: CO2 savings | E1022: % | F1022: =+'Input Data'!U1052 -> 0.7740116966
A1100: .

Sheet CO2 emissions factor
C6: No. | D6: Country | E6: CO2 emissions factor
E7: t/MWh
C8: 1 | D8: All countries | E8: 0.6028624688
C9: =+C8+1 -> 2 | D9: Afghanistan | E9: 0.31
C10: =+C9+1 -> 3 | D10: Albania | E10: 0.254
C11: 4 | D11: Algeria | E11: 0.58
C12: 5 | D12: Angola | E12: 0.7944
C13: 6 | D13: Antigua and Barbuda | E13: 0.8477
C14: 7 | D14: Argentina | E14: 0.533
C15: 8 | D15: Armenia | E15: 0.535
C16: 9 | D16: Azerbaijan | E16: 0.62
C17: 10 | D17: Bahamas | E17: 0.749
C18: 11 | D18: Bahrain | E18: 0.635
C19: 12 | D19: Bangladesh | E19: 0.626
C20: 13 | D20: Barbados | E20: 0.6542306
C21: 14 | D21: Belarus | E21: 0.452
C22: 15 | D22: Belize | E22: 0.3038
C23: 16 | D23: Benin | E23: 0.72
C24: 17 | D24: Bhutan | E24: 1.0005
C25: 18 | D25: Bolivia | E25: 0.62
C26: 19 | D26: Bosnia and Herzegovina | E26: 1.12475154
C27: 20 | D27: Botswana | E27: 1.787
C28: 21 | D28: Brazil | E28: 0.558
C29: 22 | D29: Brunei Darussalam | E29: 0.745
C30: 23 | D30: Burkina Faso | E30: 0.27875
C31: 24 | D31: Burundi | E31: 0.616
C32: 25 | D32: Cambodia | E32: 0.6257
C33: 26 | D33: Cameroon | E33: 0.201
C34: 27 | D34: Cape Verde | E34: 0.49
C35: 28 | D35: Central African Republic | E35: 0.616
C36: 29 | D36: Chad | E36: 0.616
C37: 30 | D37: Chile | E37: 0.989
C38: 31 | D38: China | E38: 1.112
C39: 32 | D39: Colombia | E39: 0.153
C40: 33 | D40: Comoros | E40: 0.616
C41: 34 | D41: Congo, Dem. Rep. of the | E41: 0.003
C42: 35 | D42: Congo, Rep. | E42: 0.247
C43: 36 | D43: Cook Islands | E43: 0.511
C44: 37 | D44: Costa Rica | E44: 0.3289
C45: 38 | D45: Côte d'Ivoire | E45: 0.6244
C46: 39 | D46: Cuba | E46: 0.8614
C47: 40 | D47: Djibouti | E47: 0.616
C48: 41 | D48: Dominica | E48: 0.6542306
C49: 42 | D49: Dominican Republic | E49: 0.809
C50: 43 | D50: Ecuador | E50: 0.7253
C51: 44 | D51: Egypt | E51: 0.5223
C52: 45 | D52: El Salvador | E52: 0.69
C53: 46 | D53: Equatorial Guinea | E53: 0.616
C54: 47 | D54: Eritrea | E54: 0.844
C55: 48 | D55: Ethiopia | E55: 0.045
C56: 49 | D56: Fiji | E56: 0.2488
C57: 50 | D57: Gabon | E57: 0.373
C58: 51 | D58: Gambia | E58: 0.49
C59: 52 | D59: Georgia | E59: 0.52012
C60: 53 | D60: Ghana | E60: 0.25168
C61: 54 | D61: Grenada | E61: 0.6542306
C62: 55 | D62: Guatemala | E62: 0.687
C63: 56 | D63: Guinea | E63: 0.49
C64: 57 | D64: Guinea-Bissau | E64: 0.49
C65: 58 | D65: Guyana | E65: 0.9483
C66: 59 | D66: Haiti | E66: 0.391
C67: 60 | D67: Honduras | E67: 0.6475
C68: 61 | D68: India | E68: 0.9941
C69: 62 | D69: Indonesia | E69: 0.644
C70: 63 | D70: Iran, Islamic Rep. of | E70: 0.744
C71: 64 | D71: Iraq | E71: 0.946
C72: 65 | D72: Israel | E72: 0.7449
C73: 66 | D73: Jamaica | E73: 0.772
C74: =+C73+1 -> 67 | D74: Jordan | E74: 0.6011
C75: 68 | D75: Kazakhstan | E75: 0.93
C76: 69 | D76: Kenya | E76: 0.6619
C77: 70 | D77: Kiribati | E77: 0.511
C78: 71 | D78: Korea, Dem. Rep. | E78: 0.94
C79: 72 | D79: Korea, Republic of | E79: 0.7403
C80: 73 | D80: Kuwait | E80: 0.75
C81: 74 | D81: Kyrgyz Republic | E81: 0.051
C82: 75 | D82: Lao People's Dem. Rep. | E82: 0.5595
C83: 76 | D83: Lebanon | E83: 0.6722
C84: 77 | D84: Lesotho | E84: 0.642
C85: 78 | D85: Liberia | E85: 0.49
C86: 79 | D86: Libya | E86: 0.8164
C87: 80 | D87: Macedonia, FYR | E87: 0.883
C88: 81 | D88: Madagascar | E88: 0.477
C89: 82 | D89: Malawi | E89: 0.2552
C90: 83 | D90: Malaysia | E90: 0.603
C91: 84 | D91: Maldives | E91: 0.725
C92: 85 | D92: Mali | E92: 0.645
C93: 86 | D93: Marshall Islands | E93: 0.511
C94: 87 | D94: Mauritania | E94: 0.616
C95: 88 | D95: Mauritius | E95: 1.017
C96: 89 | D96: Mexico | E96: 0.4671
C97: 90 | D97: Micronesia, Fed. Sts. | E97: 0.511
C98: 91 | D98: Moldova | E98: 0.293
C99: 92 | D99: Mongolia | E99: 1.121
C100: 93 | D100: Montenegro | E100: 0.6825
C101: 94 | D101: Morocco | E101: 0.8311
C102: 95 | D102: Mozambique | E102: 0.9958
C103: 96 | D103: Myanmar | E103: 0.239
C104: 97 | D104: Namibia | E104: 0.95
C105: 98 | D105: Nauru | E105: 0.511
C106: 99 | D106: Nepal | E106: 0.002
C107: 100 | D107: Nicaragua | E107: 0.71
C108: 101 | D108: Niger | E108: 0.49
C109: 102 | D109: Nigeria | E109: 0.55
C110: 103 | D110: Niue | E110: 0.511
C111: 104 | D111: Oman | E111: 0.763
C112: 105 | D112: Pakistan | E112: 0.7047
C113: 106 | D113: Palau | E113: 0.511
C114: 107 | D114: Palestine | E114: 0.743
C115: 108 | D115: Panama | E115: 0.679
C116: 109 | D116: Papua New Guinea | E116: 0.658
C117: 110 | D117: Paraguay | E117: 0.001
C118: 111 | D118: Peru | E118: 0.8583
C119: 112 | D119: Philippines | E119: 0.765
C120: 113 | D120: Qatar | E120: 0.497
C121: 114 | D121: Russian Federation | E121: 0.417
C122: 115 | D122: Rwanda | E122: 0.6606
C123: 116 | D123: Saint Kitts and Nevis | E123: 0.6542306
C124: 117 | D124: Saint Lucia | E124: 0.6542306
C125: 118 | D125: Saint Vincent and the Grenadines | E125: 0.6542306
C126: 119 | D126: Samoa | E126: 0.511
C127: 120 | D127: Sao Tome and Principe | E127: 0.616
C128: 121 | D128: Saudi Arabia | E128: 0.654
C129: 122 | D129: Senegal | E129: 0.6795
C130: 123 | D130: Serbia | E130: 0.97066
C131: 124 | D131: Seychelles | E131: 0.616
C132: 125 | D132: Sierra Leone | E132: 0.402
C133: 126 | D133: Singapore | E133: 0.5114
C134: 127 | D134: Solomon Islands | E134: 0.511
C135: 128 | D135: Somalia | E135: 0.616
C136: 129 | D136: South Africa | E136: 0.923
C137: 130 | D137: South Sudan | E137: 0.616
C138: =+C137+1 -> 131 | D138: Sri Lanka | E138: 0.6993
C139: 132 | D139: Sudan | E139: 0.231
C140: 133 | D140: Suriname | E140: 0.36
C141: 134 | D141: Swaziland | E141: 0.6432
C142: 135 | D142: Syrian Arab Republic | E142: 0.608
C143: 136 | D143: Tajikistan | E143: 0.015
C144: 137 | D144: Tanzania, U. Rep. of | E144: 0.539
C145: 138 | D145: Thailand | E145: 0.5383
C146: 139 | D146: Timor-Leste | E146: 0.725
C147: 140 | D147: Togo | E147: 0.207
C148: 141 | D148: Tonga | E148: 0.511
C149: 142 | D149: Trinidad and Tobago | E149: 0.641
C150: 143 | D150: Tunisia | E150: 0.5833
C151: 144 | D151: Turkey | E151: 0.476
C152: 145 | D152: Turkmenistan | E152: 0.934
C153: 146 | D153: Tuvalu | E153: 0.511
C154: 147 | D154: Uganda | E154: 0.614
C155: 148 | D155: Ukraine | E155: 0.426
C156: 149 | D156: United Arab Emirates | E156: 0.4369
C157: 150 | D157: Uruguay | E157: 0.675
C158: 151 | D158: Uzbekistan | E158: 0.584
C159: 152 | D159: Vanuatu | E159: 0.511
C160: 153 | D160: Venezuela | E160: 0.233
C161: 154 | D161: Viet Nam | E161: 0.6448
C162: 155 | D162: Yemen | E162: 0.64
C163: 156 | D163: Zambia | E163: 0.9958
C164: 157 | D164: Zimbabwe | E164: 0.358
D165: Average | E165: =+AVERAGE(E9:E164) -> 0.6028624688
